[Event "Late-Titled-Tuesday-Blitz-April-23-2024"]
[Site "Chess.com"]
[Date "2024.04.23"]
[Round "2"]
[White "NM_Koval"]
[Black "Slovineanu"]
[Result "0-1"]
[WhiteElo "2169"]
[BlackElo "2474"]
[TimeControl "180+1"]
[EndTime "14:17:25 PDT"]
[Termination "Slovineanu won by resignation"]

1. d4 {[%clk 0:03:00.9]} 1... Nf6 {[%clk 0:02:59.7]} 2. Nc3 {[%clk 0:03:00.6]}
2... d5 {[%clk 0:02:59.4]} 3. f3 {[%clk 0:03:00.4]} 3... Nbd7 {[%clk 0:02:53.2]}
4. e4 {[%clk 0:02:59.8]} 4... dxe4 {[%clk 0:02:51.7]} 5. fxe4 {[%clk 0:03:00]}
5... e5 {[%clk 0:02:51.9]} 6. Nf3 {[%clk 0:02:59.8]} 6... Bb4 {[%clk 0:02:48.7]}
7. dxe5 {[%clk 0:02:55.2]} 7... Ng4 {[%clk 0:02:42.5]} 8. h3 {[%clk 0:02:40.5]}
8... Ngxe5 {[%clk 0:02:38.7]} 9. Nxe5 {[%clk 0:02:41.4]} 9... Qh4+ {[%clk
0:02:33.5]} 10. Ke2 {[%clk 0:02:40.9]} 10... Nxe5 {[%clk 0:02:28.4]} 11. Qd4
{[%clk 0:02:31.5]} 11... Bxc3 {[%clk 0:01:43.2]} 12. bxc3 {[%clk 0:02:29.8]}
12... Qh5+ {[%clk 0:01:05.4]} 13. g4 {[%clk 0:02:17.4]} 13... Nxg4 {[%clk
0:01:01.4]} 14. hxg4 {[%clk 0:02:14.4]} 14... Bxg4+ {[%clk 0:01:00.9]} 15. Kf2
{[%clk 0:02:12.9]} 15... Qxh1 {[%clk 0:00:59.3]} 16. Qe5+ {[%clk 0:02:12.5]}
16... Be6 {[%clk 0:00:55.2]} 17. Bf4 {[%clk 0:01:57.6]} 17... Qh4+ {[%clk
0:00:52.5]} 18. Bg3 {[%clk 0:01:57.6]} 18... Qf6+ {[%clk 0:00:52.6]} 19. Qxf6
{[%clk 0:01:56.9]} 19... gxf6 {[%clk 0:00:53.2]} 20. Bxc7 {[%clk 0:01:57.1]}
20... Rc8 {[%clk 0:00:48.6]} 21. Bd6 {[%clk 0:01:51.4]} 21... Rxc3 {[%clk
0:00:44.8]} 22. Bd3 {[%clk 0:01:51.8]} 22... a6 {[%clk 0:00:41.2]} 23. Rd1
{[%clk 0:01:50.5]} 23... h5 {[%clk 0:00:39.6]} 24. Bg3 {[%clk 0:01:42.9]} 24...
h4 {[%clk 0:00:37.9]} 25. Bf4 {[%clk 0:01:37.8]} 25... h3 {[%clk 0:00:38]} 26.
Kg1 {[%clk 0:01:35.8]} 26... Rg8+ {[%clk 0:00:34.2]} 27. Kh2 {[%clk 0:01:35.3]}
27... Rg2+ {[%clk 0:00:33.9]} 28. Kh1 {[%clk 0:01:35.4]} 28... Rcxc2 {[%clk
0:00:24.9]} 29. Bxc2 {[%clk 0:01:32.6]} 29... Rxc2 {[%clk 0:00:25.5]} 30. a3
{[%clk 0:01:32.1]} 30... b5 {[%clk 0:00:24.1]} 31. e5 {[%clk 0:01:30]} 31...
fxe5 {[%clk 0:00:23.7]} 32. Bg5 {[%clk 0:01:30.4]} 32... f5 {[%clk 0:00:20.4]}
33. Bf6 {[%clk 0:01:25.8]} 33... e4 {[%clk 0:00:19.8]} 34. Rd6 {[%clk
0:01:26.1]} 34... Kf7 {[%clk 0:00:19.6]} 35. Bg5 {[%clk 0:01:25.2]} 35... f4
{[%clk 0:00:15.4]} 36. Bxf4 {[%clk 0:01:24]} 36... Kf6 {[%clk 0:00:15.7]} 37.
Rxa6 {[%clk 0:01:23]} 37... Kf5 {[%clk 0:00:16.2]} 38. Bh2 {[%clk 0:01:22.2]}
38... Bd5 {[%clk 0:00:16.4]} 39. Rd6 {[%clk 0:01:20.8]} 39... Rd2 {[%clk
0:00:16.8]} 40. Kg1 {[%clk 0:01:19.6]} 40... e3 {[%clk 0:00:16.9]} 41. Bg3
{[%clk 0:01:17.7]} 41... Rg2+ {[%clk 0:00:16.8]} 42. Kf1 {[%clk 0:01:16.7]}
42... Rxg3 {[%clk 0:00:16.9]} 43. Rxd5+ {[%clk 0:01:17.3]} 43... Ke4 {[%clk
0:00:17]} 44. Rxb5 {[%clk 0:01:17.5]} 44... h2 {[%clk 0:00:17]} 45. Rh5 {[%clk
0:01:16.7]} 45... Rg1+ {[%clk 0:00:17]} 46. Ke2 {[%clk 0:01:16.9]} 46... h1=Q
{[%clk 0:00:17.4]} 0-1

[Event "Late-Titled-Tuesday-Blitz-April-23-2024"]
[Site "Chess.com"]
[Date "2024.04.23"]
[Round "2"]
[White "ilya2700"]
[Black "MathiasWomacka"]
[Result "0-1"]
[WhiteElo "2306"]
[BlackElo "2521"]
[TimeControl "180+1"]
[EndTime "14:17:26 PDT"]
[Termination "MathiasWomacka won on time"]

1. d4 {[%clk 0:02:59.9]} 1... Nf6 {[%clk 0:02:58.9]} 2. c4 {[%clk 0:03:00.3]}
2... e6 {[%clk 0:02:59.2]} 3. Nf3 {[%clk 0:03:00.4]} 3... Bb4+ {[%clk
0:02:58.6]} 4. Bd2 {[%clk 0:03:00.6]} 4... Qe7 {[%clk 0:02:58.5]} 5. g3 {[%clk
0:03:00.5]} 5... Bxd2+ {[%clk 0:02:56.6]} 6. Qxd2 {[%clk 0:03:00.3]} 6... Nc6
{[%clk 0:02:54]} 7. Nc3 {[%clk 0:02:59.8]} 7... d5 {[%clk 0:02:53.1]} 8. cxd5
{[%clk 0:02:49.9]} 8... exd5 {[%clk 0:02:52]} 9. Bg2 {[%clk 0:02:50.5]} 9... Bg4
{[%clk 0:02:44]} 10. O-O {[%clk 0:02:50]} 10... O-O-O {[%clk 0:02:43.8]} 11. b4
{[%clk 0:02:46.4]} 11... Ne4 {[%clk 0:02:33.5]} 12. Qc1 {[%clk 0:02:20.3]} 12...
Qxb4 {[%clk 0:02:20.2]} 13. Nd1 {[%clk 0:01:41.4]} 13... Bxf3 {[%clk 0:02:15.6]}
14. exf3 {[%clk 0:01:34.9]} 14... Nd2 {[%clk 0:02:11]} 15. Nc3 {[%clk
0:01:03.4]} 15... Nxf1 {[%clk 0:02:07.5]} 16. Rb1 {[%clk 0:01:00.6]} 16... Qxd4
{[%clk 0:01:51.4]} 17. Bxf1 {[%clk 0:00:56.1]} 17... Qc5 {[%clk 0:01:25.7]} 18.
Rb5 {[%clk 0:00:47.3]} 18... Qd6 {[%clk 0:01:12.4]} 19. Qb2 {[%clk 0:00:33.4]}
19... b6 {[%clk 0:01:05.2]} 20. Rxd5 {[%clk 0:00:16.4]} 20... Qf6 {[%clk
0:01:04]} 21. Ba6+ {[%clk 0:00:06.3]} 21... Kb8 {[%clk 0:01:02.9]} 22. Qb5
{[%clk 0:00:02.9]} 22... Nd4 {[%clk 0:00:57.3]} 23. Rxd8+ {[%clk 0:00:02]} 23...
Rxd8 {[%clk 0:00:55.9]} 24. Qc4 {[%clk 0:00:01.9]} 24... Qxf3 {[%clk 0:00:49.8]}
25. Nd5 {[%clk 0:00:01.4]} 25... Qxd5 {[%clk 0:00:47.3]} 0-1

[Event "Late-Titled-Tuesday-Blitz-April-23-2024"]
[Site "Chess.com"]
[Date "2024.04.23"]
[Round "2"]
[White "ACollins05"]
[Black "Abund"]
[Result "0-1"]
[WhiteElo "2530"]
[BlackElo "2777"]
[TimeControl "180+1"]
[EndTime "14:17:28 PDT"]
[Termination "Abund won by resignation"]

1. Nf3 {[%clk 0:03:00.9]} 1... d5 {[%clk 0:02:58.5]} 2. e3 {[%clk 0:03:01]} 2...
Nf6 {[%clk 0:02:58.2]} 3. b3 {[%clk 0:03:00.8]} 3... e6 {[%clk 0:02:54.8]} 4.
Bb2 {[%clk 0:03:01.3]} 4... b6 {[%clk 0:02:54.9]} 5. Be2 {[%clk 0:03:01.4]} 5...
Bb7 {[%clk 0:02:55.4]} 6. O-O {[%clk 0:03:00.5]} 6... Nbd7 {[%clk 0:02:54]} 7.
c4 {[%clk 0:03:00.5]} 7... Bd6 {[%clk 0:02:52.6]} 8. d4 {[%clk 0:03:00.6]} 8...
O-O {[%clk 0:02:52.2]} 9. Nbd2 {[%clk 0:03:01.1]} 9... Qe7 {[%clk 0:02:51.3]}
10. Rc1 {[%clk 0:03:01.4]} 10... c5 {[%clk 0:02:42.7]} 11. Rc2 {[%clk
0:03:01.2]} 11... Rac8 {[%clk 0:02:39]} 12. Qa1 {[%clk 0:02:59.5]} 12... Rfd8
{[%clk 0:02:36.9]} 13. Rfc1 {[%clk 0:02:55.7]} 13... h6 {[%clk 0:02:37.2]} 14.
cxd5 {[%clk 0:02:54.3]} 14... Bxd5 {[%clk 0:02:28.5]} 15. Bd3 {[%clk 0:02:45.5]}
15... Bb7 {[%clk 0:02:22.7]} 16. Be2 {[%clk 0:02:30]} 16... Qf8 {[%clk
0:02:15.9]} 17. Nc4 {[%clk 0:02:21.6]} 17... Be7 {[%clk 0:02:09]} 18. Nce5
{[%clk 0:02:16.9]} 18... Be4 {[%clk 0:02:04.5]} 19. Bd3 {[%clk 0:02:05.5]} 19...
Nxe5 {[%clk 0:01:42.4]} 20. dxe5 {[%clk 0:01:29.6]} 20... Bxd3 {[%clk
0:01:32.4]} 21. exf6 {[%clk 0:01:29.9]} 21... Bxf6 {[%clk 0:01:24.7]} 22. Bxf6
{[%clk 0:01:27.8]} 22... gxf6 {[%clk 0:01:25.2]} 23. Rd2 {[%clk 0:01:25.7]}
23... Kg7 {[%clk 0:01:18.7]} 24. Rcd1 {[%clk 0:01:21.4]} 24... Be4 {[%clk
0:01:17.1]} 25. Qc3 {[%clk 0:01:20.8]} 25... Qe7 {[%clk 0:01:08]} 26. Qc4 {[%clk
0:01:17.6]} 26... Rxd2 {[%clk 0:00:51.6]} 27. Rxd2 {[%clk 0:01:15.4]} 27... Qb7
{[%clk 0:00:50.9]} 28. Ne1 {[%clk 0:01:10.7]} 28... b5 {[%clk 0:00:46.6]} 29.
Qe2 {[%clk 0:01:06.7]} 29... c4 {[%clk 0:00:45]} 30. bxc4 {[%clk 0:01:03.2]}
30... bxc4 {[%clk 0:00:45.9]} 31. f3 {[%clk 0:00:59.9]} 31... c3 {[%clk
0:00:43.6]} 32. Rd1 {[%clk 0:00:59.3]} 32... Bd5 {[%clk 0:00:36.2]} 33. e4
{[%clk 0:00:57.8]} 33... Bc4 {[%clk 0:00:32]} 34. Qc2 {[%clk 0:00:53.1]} 34...
Qb2 {[%clk 0:00:26.5]} 35. Qxb2 {[%clk 0:00:49.4]} 35... cxb2 {[%clk 0:00:26.9]}
36. Rb1 {[%clk 0:00:50]} 36... Rb8 {[%clk 0:00:27]} 0-1

[Event "Late-Titled-Tuesday-Blitz-April-23-2024"]
[Site "Chess.com"]
[Date "2024.04.23"]
[Round "2"]
[White "Skatchkov_V"]
[Black "LiemLe"]
[Result "0-1"]
[WhiteElo "2663"]
[BlackElo "3064"]
[TimeControl "180+1"]
[EndTime "14:17:32 PDT"]
[Termination "LiemLe won by resignation"]

1. d4 {[%clk 0:02:59.9]} 1... Nf6 {[%clk 0:03:00]} 2. c4 {[%clk 0:03:00]} 2...
g6 {[%clk 0:03:00.7]} 3. Nc3 {[%clk 0:03:00.1]} 3... d5 {[%clk 0:03:01.4]} 4.
Nf3 {[%clk 0:03:00.1]} 4... Bg7 {[%clk 0:03:01.3]} 5. Bg5 {[%clk 0:03:00.7]}
5... Ne4 {[%clk 0:03:00.5]} 6. Bf4 {[%clk 0:03:01.2]} 6... Nxc3 {[%clk
0:03:00.5]} 7. bxc3 {[%clk 0:03:02.1]} 7... dxc4 {[%clk 0:03:01.3]} 8. e3 {[%clk
0:03:02.6]} 8... Be6 {[%clk 0:03:01.8]} 9. Ng5 {[%clk 0:02:55.8]} 9... Bd5
{[%clk 0:03:02.1]} 10. e4 {[%clk 0:02:56.1]} 10... h6 {[%clk 0:03:02.5]} 11.
exd5 {[%clk 0:02:37.4]} 11... hxg5 {[%clk 0:03:02.3]} 12. Qa4+ {[%clk
0:02:16.5]} 12... Kf8 {[%clk 0:03:02.2]} 13. Be3 {[%clk 0:01:40.9]} 13... Qxd5
{[%clk 0:02:57.3]} 14. Rb1 {[%clk 0:01:40.9]} 14... Nd7 {[%clk 0:02:40]} 15. Rb5
{[%clk 0:01:37.7]} 15... Nb6 {[%clk 0:02:28.5]} 16. Rxd5 {[%clk 0:01:23.5]}
16... Nxa4 {[%clk 0:02:28.6]} 17. Rd7 {[%clk 0:01:23.9]} 17... Nxc3 {[%clk
0:02:17.9]} 18. Bxc4 {[%clk 0:01:12.3]} 18... Bf6 {[%clk 0:01:50.8]} 19. Rxc7
{[%clk 0:01:11.3]} 19... b5 {[%clk 0:01:47.5]} 20. Bb3 {[%clk 0:01:05.3]} 20...
b4 {[%clk 0:01:47.3]} 21. d5 {[%clk 0:00:11.5]} 21... a5 {[%clk 0:01:34.2]} 22.
d6 {[%clk 0:00:11.4]} 22... e6 {[%clk 0:01:28.8]} 23. d7 {[%clk 0:00:06.9]}
23... a4 {[%clk 0:00:55.7]} 24. Bc4 {[%clk 0:00:06.3]} 24... b3 {[%clk
0:00:50.9]} 25. axb3 {[%clk 0:00:03.9]} 25... a3 {[%clk 0:00:51.4]} 26. Kd2
{[%clk 0:00:03.9]} 26... a2 {[%clk 0:00:51.4]} 27. Rc8+ {[%clk 0:00:02.3]} 27...
Kg7 {[%clk 0:00:51.1]} 28. Rxh8 {[%clk 0:00:02.4]} 28... Kxh8 {[%clk 0:00:49]}
29. Bb6 {[%clk 0:00:01.7]} 29... Nb1+ {[%clk 0:00:48.6]} 30. Kc2 {[%clk
0:00:02]} 30... a1=Q {[%clk 0:00:47.9]} 0-1

[Event "Late-Titled-Tuesday-Blitz-April-23-2024"]
[Site "Chess.com"]
[Date "2024.04.23"]
[Round "2"]
[White "elmusmolamas"]
[Black "BenchGM"]
[Result "1-0"]
[WhiteElo "2494"]
[BlackElo "2228"]
[TimeControl "180+1"]
[EndTime "14:17:33 PDT"]
[Termination "elmusmolamas won on time"]

1. e4 {[%clk 0:03:00.9]} 1... c5 {[%clk 0:02:59.4]} 2. Nf3 {[%clk 0:02:58.6]}
2... e6 {[%clk 0:02:59.2]} 3. Nc3 {[%clk 0:02:56.7]} 3... Nc6 {[%clk 0:02:57.8]}
4. Be2 {[%clk 0:02:51.5]} 4... Nf6 {[%clk 0:02:48.8]} 5. O-O {[%clk 0:02:39.6]}
5... Be7 {[%clk 0:02:43.3]} 6. d4 {[%clk 0:02:37.8]} 6... cxd4 {[%clk
0:02:42.5]} 7. Nxd4 {[%clk 0:02:38.7]} 7... Qc7 {[%clk 0:02:39.5]} 8. Kh1 {[%clk
0:02:36.6]} 8... a6 {[%clk 0:02:35.3]} 9. f4 {[%clk 0:02:37]} 9... d6 {[%clk
0:02:34.7]} 10. Be3 {[%clk 0:02:36]} 10... O-O {[%clk 0:02:30.8]} 11. Bf3 {[%clk
0:02:36.5]} 11... Nxd4 {[%clk 0:01:53.8]} 12. Qxd4 {[%clk 0:02:28.8]} 12... Ne8
{[%clk 0:01:16]} 13. e5 {[%clk 0:02:24.4]} 13... f6 {[%clk 0:01:02.6]} 14. exf6
{[%clk 0:02:13.4]} 14... Bxf6 {[%clk 0:00:54.3]} 15. Qd3 {[%clk 0:02:09]} 15...
g6 {[%clk 0:00:50.9]} 16. Bd4 {[%clk 0:02:01.6]} 16... Ng7 {[%clk 0:00:49]} 17.
Rad1 {[%clk 0:01:57.3]} 17... d5 {[%clk 0:00:39]} 18. Rfe1 {[%clk 0:01:54.3]}
18... Qxf4 {[%clk 0:00:28.2]} 19. Bc5 {[%clk 0:01:50.3]} 19... Rf7 {[%clk
0:00:22.7]} 20. Rf1 {[%clk 0:01:50.7]} 20... Qf5 {[%clk 0:00:12.7]} 21. Qe2
{[%clk 0:01:44.4]} 21... Qg5 {[%clk 0:00:10.3]} 22. Be3 {[%clk 0:01:42.4]} 22...
Qh4 {[%clk 0:00:09.8]} 23. g3 {[%clk 0:01:37.7]} 23... Qb4 {[%clk 0:00:09.7]}
24. Bxd5 {[%clk 0:01:30.2]} 24... Bxc3 {[%clk 0:00:07.4]} 25. Rxf7 {[%clk
0:01:28.4]} 25... Kxf7 {[%clk 0:00:06.2]} 26. bxc3 {[%clk 0:01:25.9]} 26... Qxc3
{[%clk 0:00:05.6]} 27. Rf1+ {[%clk 0:01:26]} 27... Nf5 {[%clk 0:00:05.3]} 28.
Bd2 {[%clk 0:01:21]} 28... Qc5 {[%clk 0:00:02.5]} 29. Bg2 {[%clk 0:01:20.6]}
29... Bd7 {[%clk 0:00:02.1]} 30. g4 {[%clk 0:01:16.6]} 30... Bc6 {[%clk
0:00:02.3]} 31. gxf5 {[%clk 0:01:17.2]} 31... gxf5 {[%clk 0:00:02.5]} 32. Qh5+
{[%clk 0:01:16.9]} 32... Ke7 {[%clk 0:00:02.2]} 33. Qh4+ {[%clk 0:01:15.6]}
33... Kd7 {[%clk 0:00:01.9]} 34. Qxh7+ {[%clk 0:01:12.7]} 34... Kd6 {[%clk
0:00:02.1]} 35. Bf4+ {[%clk 0:01:11.2]} 35... e5 {[%clk 0:00:02.3]} 36. Rd1+
{[%clk 0:01:07.6]} 1-0

[Event "Late-Titled-Tuesday-Blitz-April-23-2024"]
[Site "Chess.com"]
[Date "2024.04.23"]
[Round "2"]
[White "stasOR4ik"]
[Black "lamomiajunior"]
[Result "1-0"]
[WhiteElo "2455"]
[BlackElo "2735"]
[TimeControl "180+1"]
[EndTime "14:17:36 PDT"]
[Termination "stasOR4ik won by resignation"]

1. e4 {[%clk 0:03:00.9]} 1... c5 {[%clk 0:03:00.2]} 2. c3 {[%clk 0:03:00.5]}
2... Nf6 {[%clk 0:02:59.3]} 3. e5 {[%clk 0:03:01]} 3... Nd5 {[%clk 0:02:59.8]}
4. Nf3 {[%clk 0:03:01.7]} 4... Nc6 {[%clk 0:02:59.8]} 5. Bc4 {[%clk 0:03:01.2]}
5... Nb6 {[%clk 0:03:00.3]} 6. Bb3 {[%clk 0:03:01.5]} 6... d5 {[%clk 0:02:57.8]}
7. exd6 {[%clk 0:03:01.1]} 7... e5 {[%clk 0:02:58.3]} 8. d4 {[%clk 0:03:00.2]}
8... cxd4 {[%clk 0:02:38.9]} 9. cxd4 {[%clk 0:02:59.9]} 9... Bxd6 {[%clk
0:02:04.1]} 10. dxe5 {[%clk 0:02:59.3]} 10... Bb4+ {[%clk 0:01:48.6]} 11. Bd2
{[%clk 0:02:59.5]} 11... O-O {[%clk 0:01:44]} 12. O-O {[%clk 0:02:58.1]} 12...
Bg4 {[%clk 0:01:30.8]} 13. Bxb4 {[%clk 0:02:55.2]} 13... Nxb4 {[%clk 0:01:31.7]}
14. Qxd8 {[%clk 0:02:49.9]} 14... Rfxd8 {[%clk 0:01:32.6]} 15. Ng5 {[%clk
0:02:49.4]} 15... N4d5 {[%clk 0:01:07.1]} 16. Nc3 {[%clk 0:02:44.8]} 16... Nxc3
{[%clk 0:01:02.1]} 17. Bxf7+ {[%clk 0:02:23.8]} 17... Kf8 {[%clk 0:01:02.5]} 18.
bxc3 {[%clk 0:02:22.9]} 18... h6 {[%clk 0:01:02.8]} 19. Be6 {[%clk 0:02:23.2]}
19... Be2 {[%clk 0:00:56]} 20. Rfe1 {[%clk 0:02:23.3]} 20... Bd3 {[%clk
0:00:30.1]} 21. Nf3 {[%clk 0:02:17.2]} 21... Ke7 {[%clk 0:00:29]} 22. Bb3 {[%clk
0:02:14.4]} 22... a5 {[%clk 0:00:29.4]} 23. a4 {[%clk 0:01:56.2]} 23... Rac8
{[%clk 0:00:29.5]} 24. Rac1 {[%clk 0:01:51]} 24... Nd5 {[%clk 0:00:20.5]} 25.
Bxd5 {[%clk 0:01:22.1]} 25... Rxd5 {[%clk 0:00:21.4]} 26. h3 {[%clk 0:01:20.9]}
26... Rc4 {[%clk 0:00:20.5]} 27. Re3 {[%clk 0:01:12.4]} 27... Bg6 {[%clk
0:00:18]} 28. e6 {[%clk 0:01:06.4]} 28... Be4 {[%clk 0:00:13.9]} 29. Rce1 {[%clk
0:00:52.2]} 29... Bg6 {[%clk 0:00:07.2]} 30. Ne5 {[%clk 0:00:51.6]} 30... Rxe5
{[%clk 0:00:05.9]} 31. Rxe5 {[%clk 0:00:51.6]} 31... Rxa4 {[%clk 0:00:05.9]} 32.
Rb5 {[%clk 0:00:50.6]} 32... Bf5 {[%clk 0:00:01.9]} 33. Rxf5 {[%clk 0:00:49.7]}
1-0

[Event "Late-Titled-Tuesday-Blitz-April-23-2024"]
[Site "Chess.com"]
[Date "2024.04.23"]
[Round "2"]
[White "gmcorrales"]
[Black "Nemsko"]
[Result "0-1"]
[WhiteElo "2851"]
[BlackElo "2449"]
[TimeControl "180+1"]
[EndTime "14:17:40 PDT"]
[Termination "Nemsko won on time"]

1. e4 {[%clk 0:02:52.2]} 1... e5 {[%clk 0:02:58.8]} 2. Nf3 {[%clk 0:02:33.9]}
2... Nc6 {[%clk 0:02:59.1]} 3. d4 {[%clk 0:02:32.3]} 3... exd4 {[%clk
0:02:59.1]} 4. Nxd4 {[%clk 0:02:33.2]} 4... Nf6 {[%clk 0:02:59.7]} 5. Nxc6
{[%clk 0:02:25.3]} 5... bxc6 {[%clk 0:03:00.6]} 6. e5 {[%clk 0:02:25.3]} 6...
Qe7 {[%clk 0:02:59.8]} 7. Qe2 {[%clk 0:02:25.4]} 7... Nd5 {[%clk 0:02:58.9]} 8.
h4 {[%clk 0:02:26]} 8... g6 {[%clk 0:02:54.3]} 9. c4 {[%clk 0:02:22.8]} 9... Ba6
{[%clk 0:02:53.6]} 10. b3 {[%clk 0:02:16.4]} 10... Bg7 {[%clk 0:02:52.7]} 11.
Bb2 {[%clk 0:02:16.8]} 11... Nb6 {[%clk 0:02:46.6]} 12. Nd2 {[%clk 0:02:16.1]}
12... h5 {[%clk 0:02:40.4]} 13. O-O-O {[%clk 0:02:15.8]} 13... O-O {[%clk
0:02:40]} 14. f4 {[%clk 0:02:15.5]} 14... d5 {[%clk 0:02:33.2]} 15. exd6 {[%clk
0:02:12.3]} 15... Bxb2+ {[%clk 0:02:28.9]} 16. Kxb2 {[%clk 0:02:13.2]} 16...
Qxd6 {[%clk 0:02:25.9]} 17. Qe5 {[%clk 0:02:07.1]} 17... Rfe8 {[%clk 0:02:18.2]}
18. Qxd6 {[%clk 0:02:04.8]} 18... cxd6 {[%clk 0:02:19.1]} 19. Rh3 {[%clk
0:01:54.3]} 19... d5 {[%clk 0:02:12.6]} 20. Kc3 {[%clk 0:01:39.7]} 20... Rad8
{[%clk 0:02:01.5]} 21. Bd3 {[%clk 0:01:09.9]} 21... d4+ {[%clk 0:01:57.5]} 22.
Kc2 {[%clk 0:01:05.1]} 22... Nd7 {[%clk 0:01:52.7]} 23. Ne4 {[%clk 0:00:47.3]}
23... f5 {[%clk 0:01:47.5]} 24. Nd2 {[%clk 0:00:27]} 24... c5 {[%clk 0:01:40.5]}
25. Rg3 {[%clk 0:00:26.9]} 25... Kf7 {[%clk 0:01:40.2]} 26. Nf3 {[%clk
0:00:20.3]} 26... Bb7 {[%clk 0:01:40.3]} 27. Ng5+ {[%clk 0:00:20.3]} 27... Kf6
{[%clk 0:01:40.3]} 28. Rd2 {[%clk 0:00:19.7]} 28... Re1 {[%clk 0:01:35.5]} 29.
Re2 {[%clk 0:00:19.9]} 29... Re8 {[%clk 0:01:35.6]} 30. Rxe8 {[%clk 0:00:18.4]}
30... Rxe8 {[%clk 0:01:35.5]} 31. Rh3 {[%clk 0:00:15.4]} 31... Bxg2 {[%clk
0:01:33.8]} 32. Rh2 {[%clk 0:00:15.7]} 32... Bb7 {[%clk 0:01:34.2]} 33. Rf2
{[%clk 0:00:12]} 33... Re3 {[%clk 0:01:32.8]} 34. Rd2 {[%clk 0:00:10.4]} 34...
Nf8 {[%clk 0:01:32.7]} 35. b4 {[%clk 0:00:10.1]} 35... cxb4 {[%clk 0:01:31.6]}
36. Kb2 {[%clk 0:00:10.7]} 36... Ne6 {[%clk 0:01:31.1]} 37. Nxe6 {[%clk
0:00:10]} 37... Kxe6 {[%clk 0:01:32]} 38. Bc2 {[%clk 0:00:10.6]} 38... Be4
{[%clk 0:01:28]} 39. Bb3 {[%clk 0:00:10.2]} 39... d3 {[%clk 0:01:27.7]} 40. a3
{[%clk 0:00:09.5]} 40... a5 {[%clk 0:01:25.8]} 41. axb4 {[%clk 0:00:09.4]} 41...
axb4 {[%clk 0:01:26.7]} 42. Bd1 {[%clk 0:00:09.5]} 42... Kd6 {[%clk 0:01:26.7]}
43. Kb3 {[%clk 0:00:10.1]} 43... Kc5 {[%clk 0:01:27.1]} 44. Ka4 {[%clk 0:00:07]}
44... Kxc4 {[%clk 0:01:26.1]} 45. Bb3+ {[%clk 0:00:07.2]} 45... Kc3 {[%clk
0:01:26.6]} 46. Rd1 {[%clk 0:00:07.3]} 46... d2 {[%clk 0:01:26.7]} 47. Bf7
{[%clk 0:00:06.6]} 47... Re1 {[%clk 0:01:27]} 48. Rxd2 {[%clk 0:00:04.6]} 48...
Kxd2 {[%clk 0:01:27.1]} 0-1

[Event "Late-Titled-Tuesday-Blitz-April-23-2024"]
[Site "Chess.com"]
[Date "2024.04.23"]
[Round "2"]
[White "dosto07"]
[Black "LUISMIGUELOV"]
[Result "1-0"]
[WhiteElo "2492"]
[BlackElo "2201"]
[TimeControl "180+1"]
[EndTime "14:17:42 PDT"]
[Termination "dosto07 won by resignation"]

1. e4 {[%clk 0:03:00.9]} 1... c6 {[%clk 0:02:57.2]} 2. d4 {[%clk 0:02:59.7]}
2... d5 {[%clk 0:02:56.9]} 3. exd5 {[%clk 0:03:00.2]} 3... cxd5 {[%clk
0:02:44.9]} 4. Bd3 {[%clk 0:02:59.3]} 4... Nc6 {[%clk 0:02:43.8]} 5. c3 {[%clk
0:02:59.6]} 5... Qc7 {[%clk 0:02:44]} 6. h3 {[%clk 0:02:58.4]} 6... Nf6 {[%clk
0:02:42.2]} 7. Nf3 {[%clk 0:02:58.1]} 7... e6 {[%clk 0:02:40.4]} 8. O-O {[%clk
0:02:56.6]} 8... a6 {[%clk 0:02:38.6]} 9. Bg5 {[%clk 0:02:54.4]} 9... Be7 {[%clk
0:02:37.8]} 10. Nbd2 {[%clk 0:02:54.3]} 10... O-O {[%clk 0:02:37]} 11. Qe2
{[%clk 0:02:54.4]} 11... b5 {[%clk 0:02:36.8]} 12. Ne5 {[%clk 0:02:54.1]} 12...
Nxe5 {[%clk 0:02:34.3]} 13. dxe5 {[%clk 0:02:53.9]} 13... Ne8 {[%clk 0:02:30.9]}
14. Nf3 {[%clk 0:02:51.2]} 14... Bxg5 {[%clk 0:02:00.3]} 15. Bxh7+ {[%clk
0:02:40.2]} 15... Kxh7 {[%clk 0:01:54.3]} 16. Nxg5+ {[%clk 0:02:40.3]} 16... Kg6
{[%clk 0:01:32]} 17. Qg4 {[%clk 0:02:39.9]} 17... f5 {[%clk 0:01:31]} 18. exf6
{[%clk 0:02:21.8]} 18... Nxf6 {[%clk 0:01:29.9]} 19. Qh4 {[%clk 0:01:51.8]}
19... Rh8 {[%clk 0:01:27.9]} 20. Qxh8 {[%clk 0:01:50.7]} 20... Kxg5 {[%clk
0:01:27]} 21. Rae1 {[%clk 0:01:32.9]} 21... Bb7 {[%clk 0:01:24.3]} 22. f4+
{[%clk 0:01:30.2]} 22... Kg6 {[%clk 0:01:09]} 23. Qh4 {[%clk 0:01:28.3]} 23...
Qb6+ {[%clk 0:01:05.5]} 24. Kh2 {[%clk 0:01:22.4]} 24... Rf8 {[%clk 0:00:55]}
25. Re5 {[%clk 0:01:13.1]} 25... Kf7 {[%clk 0:00:45.4]} 26. f5 {[%clk 0:01:10]}
26... exf5 {[%clk 0:00:36]} 27. Rfxf5 {[%clk 0:01:05.7]} 27... Qd6 {[%clk
0:00:34.6]} 28. Kh1 {[%clk 0:00:59.6]} 28... d4 {[%clk 0:00:32.7]} 29. cxd4
{[%clk 0:00:56.4]} 29... Qc6 {[%clk 0:00:32.1]} 30. d5 {[%clk 0:00:53.3]} 30...
Qc1+ {[%clk 0:00:29.6]} 31. Kh2 {[%clk 0:00:53.6]} 31... Qxb2 {[%clk 0:00:23.4]}
32. Rxf6+ {[%clk 0:00:36.8]} 1-0